[Event "44th Chess Olympiad Open 2022"]
[Site "Chennai"]
[Date "2022.07.31"]
[Round "3.42"]
[White "Liyanage, Ranindu Dilshan"]
[Black "Risteski, Emil"]
[Result "1/2-1/2"]
[WhiteElo "2286"]
[BlackElo "2405"]
[Annotator "RC"]
[PlyCount "67"]
[EventDate "2022.??.??"]
[TimeControl "60"]

1. e4 {[%emt 0:00:11]} c5 {[%emt 0:00:18]} 2. Nc3 {[%emt 0:00:08]} Nc6 {
[%emt 0:01:44]} 3. Bb5 {[%emt 0:00:23]} g6 {[%emt 0:01:08]} 4. Bxc6 {[%emt 0:
00:00]} bxc6 {[%emt 0:00:13]} 5. d3 {[%emt 0:00:15]} Bg7 {[%emt 0:00:10]} 6. f4
{[%emt 0:00:13]} d6 {[%emt 0:00:39]} 7. Nf3 {[%emt 0:00:19]} Nh6 {[%emt 0:00:
00]} 8. O-O {[%emt 0:01:23]} f5 {[%emt 0:01:06]} 9. Qe2 {[%emt 0:10:36]} O-O {
[%emt 0:00:57]} 10. Re1 {[%emt 0:02:55]} Rb8 {[%emt 0:03:41]} 11. e5 {[%emt 0:
00:00]} Nf7 {[%emt 0:03:37]} 12. Kh1 {[%emt 0:07:28]} Qc7 {[%emt 0:05:22]} 13.
Na4 {[%emt 0:02:05]} Rb4 {[%emt 0:05:27]} 14. b3 {[%emt 0:04:51]} g5 {[%emt 0:
00:00]} 15. a3 {[%emt 0:28:28]} Rb8 {[%emt 0:13:46]} 16. Bb2 {[%emt 0:03:32]}
g4 {[%emt 0:02:24]} 17. exd6 {[%emt 0:02:53]} exd6 {[%emt 0:00:39]} 18. Nh4 {
[%emt 0:00:25]} Bxb2 {[%emt 0:02:25]} 19. Nxb2 {[%emt 0:00:05]} Bd7 {[%emt 0:
00:00]} 20. Qe7 {[%emt 0:09:24]} Rbe8 {[%emt 0:05:48]} 21. Qf6 {[%emt 0:00:05]}
Qd8 {[%emt 0:00:07]} 22. Qxd8 {[%emt 0:00:23]} Rxd8 {[%emt 0:03:42]} 23. Nc4 {
[%emt 0:00:41]} Kg7 {[%emt 0:00:57]} 24. Kg1 {[%emt 0:02:19]} Kf6 {[%emt 0:00:
00]} 25. b4 {[%emt 0:01:21]} Rfe8 {[%emt 0:08:58]} 26. bxc5 {[%emt 0:05:08]}
dxc5 {[%emt 0:01:17]} 27. Kf2 {[%emt 0:00:55]} Be6 {[%emt 0:01:56]} 28. Na5 {
[%emt 0:00:38]} c4 {[%emt 0:03:30]} 29. Nxc6 {[%emt 0:01:11]} Rd7 {[%emt 0:00:
00]} 30. Rad1 {[%emt 0:03:58]} Rc8 {[%emt 0:04:24]} 31. Ne5 {[%emt 0:00:43]}
Nxe5 {[%emt 0:00:09]} 32. Rxe5 {[%emt 0:00:25]} cxd3 {[%emt 0:00:17]} 33. cxd3
{[%emt 0:00:07]} Rd5 {[%emt 0:11:19]} 34. d4 {[%emt 0:00:37]} 1/2-1/2

[Event "44th Chess Olympiad Open 2022"]
[Site "Chennai"]
[Date "2022.07.31"]
[Round "3.42"]
[White "Nabil Nazar, Mohamed"]
[Black "Nikolovski, Nikola"]
[Result "0-1"]
[WhiteElo "1845"]
[BlackElo "2366"]
[Annotator "RC"]
[PlyCount "76"]
[EventDate "2022.??.??"]
[TimeControl "60"]

1. d4 {[%emt 0:00:05]} e6 {[%emt 0:00:09]} 2. Nf3 {[%emt 0:00:17]} f5 {[%emt 0:
00:00]} 3. g3 {[%emt 0:00:05]} Nf6 {[%emt 0:03:05]} 4. Bg2 {[%emt 0:00:07]} Be7
{[%emt 0:00:08]} 5. O-O {[%emt 0:00:05]} O-O {[%emt 0:00:07]} 6. c4 {[%emt 0:
00:00]} d6 {[%emt 0:01:39]} 7. Nc3 {[%emt 0:00:49]} Nc6 {[%emt 0:08:02]} 8. a3
{[%emt 0:16:08]} Qe8 {[%emt 0:10:41]} 9. Re1 {[%emt 0:05:00]} e5 {[%emt 0:00:
00]} 10. dxe5 {[%emt 0:02:08]} dxe5 {[%emt 0:00:40]} 11. Nd5 {[%emt 0:00:32]}
Bd8 {[%emt 0:04:15]} 12. b4 {[%emt 0:06:09]} e4 {[%emt 0:03:12]} 13. Nd4 {
[%emt 0:04:29]} Ne5 {[%emt 0:08:47]} 14. Ne3 {[%emt 0:07:32]} Qh5 {[%emt 0:00:
00]} 15. f4 {[%emt 0:00:49]} Neg4 {[%emt 0:03:49]} 16. Nxg4 {[%emt 0:02:24]}
Nxg4 {[%emt 0:02:40]} 17. h3 {[%emt 0:00:30]} Nf6 {[%emt 0:00:06]} 18. Kh2 {
[%emt 0:17:05]} Ng4+ {[%emt 0:00:59]} 19. Kg1 {[%emt 0:00:13]} Nf6 {[%emt 0:00:
00]} 20. Kh2 {[%emt 0:00:02]} Qg6 {[%emt 0:00:57]} 21. Rg1 {[%emt 0:00:53]}
Ng4+ {[%emt 0:08:16]} 22. hxg4 {[%emt 0:00:02]} Qh6+ {[%emt 0:00:07]} 23. Bh3 {
[%emt 0:00:10]} fxg4 {[%emt 0:00:05]} 24. Kg2 {[%emt 0:01:32]} gxh3+ {[%emt 0:
00:00]} 25. Kh2 {[%emt 0:00:46]} Bg4 {[%emt 0:02:48]} 26. Qc2 {[%emt 0:01:34]}
Qh5 {[%emt 0:03:38]} 27. e3 {[%emt 0:05:29]} Bf6 {[%emt 0:04:52]} 28. Bb2 {
[%emt 0:02:00]} c5 {[%emt 0:01:07]} 29. Nb3 {[%emt 0:01:46]} Bxb2 {[%emt 0:00:
00]} 30. Qxb2 {[%emt 0:00:02]} b6 {[%emt 0:00:23]} 31. Qc2 {[%emt 0:06:09]}
Rad8 {[%emt 0:01:21]} 32. bxc5 {[%emt 0:03:06]} bxc5 {[%emt 0:00:08]} 33. Qxe4
{[%emt 0:02:58]} Rfe8 {[%emt 0:04:29]} 34. Qc2 {[%emt 0:01:23]} Rxe3 {[%emt 0:
00:00]} 35. Rge1 {[%emt 0:00:55]} Rxb3 {[%emt 0:04:23]} 36. Re5 {[%emt 0:04:56]
} Rbd3 {[%emt 0:00:40]} 37. Ra2 {[%emt 0:04:08]} Qf7 {[%emt 0:00:53]} 38. Rxc5
{[%emt 0:03:22]} Qd7 {[%emt 0:00:21]} 0-1

[Event "44th Chess Olympiad Open 2022"]
[Site "Chennai"]
[Date "2022.07.31"]
[Round "3.43"]
[White "Ibarra Chami, Luis Fernando"]
[Black "Oratile, Kgotlane"]
[Result "1-0"]
[WhiteElo "2452"]
[BlackElo "2024"]
[Annotator "RC"]
[PlyCount "97"]
[EventDate "2022.??.??"]
[TimeControl "60"]

1. e4 {[%emt 0:00:13]} c5 {[%emt 0:00:07]} 2. Nf3 {[%emt 0:00:34]} g6 {[%emt 0:
00:00]} 3. c3 {[%emt 0:00:39]} Bg7 {[%emt 0:00:24]} 4. d4 {[%emt 0:03:09]} cxd4
{[%emt 0:00:09]} 5. cxd4 {[%emt 0:00:23]} d5 {[%emt 0:00:08]} 6. e5 {[%emt 0:
00:00]} Bg4 {[%emt 0:00:24]} 7. Bb5+ {[%emt 0:01:23]} Nd7 {[%emt 0:00:28]} 8.
Nbd2 {[%emt 0:02:06]} e6 {[%emt 0:01:21]} 9. O-O {[%emt 0:01:30]} Ne7 {[%emt 0:
00:00]} 10. h3 {[%emt 0:00:31]} Bxf3 {[%emt 0:00:14]} 11. Nxf3 {[%emt 0:00:07]}
O-O {[%emt 0:00:14]} 12. Bg5 {[%emt 0:00:41]} h6 {[%emt 0:06:43]} 13. Bd2 {
[%emt 0:00:28]} a6 {[%emt 0:00:44]} 14. Bd3 {[%emt 0:04:31]} Rc8 {[%emt 0:00:
00]} 15. h4 {[%emt 0:07:54]} Qb6 {[%emt 0:09:22]} 16. a4 {[%emt 0:05:43]} Nf5 {
[%emt 0:03:04]} 17. a5 {[%emt 0:08:20]} Qd8 {[%emt 0:19:33]} 18. Bxf5 {[%emt 0:
00:00]} gxf5 {[%emt 0:01:59]} 19. Qb3 {[%emt 0:00:52]} Qc7 {[%emt 0:05:46]} 20.
Ra4 {[%emt 0:05:47]} Rfe8 {[%emt 0:07:58]} 21. Rb4 {[%emt 0:01:59]} b5 {
[%emt 0:07:17]} 22. axb6 {[%emt 0:00:05]} Qb7 {[%emt 0:00:05]} 23. Ra1 {
[%emt 0:01:15]} Rc6 {[%emt 0:00:52]} 24. Ne1 {[%emt 0:12:05]} Rb8 {[%emt 0:00:
00]} 25. Qg3 {[%emt 0:03:34]} Kh8 {[%emt 0:01:24]} 26. Qf3 {[%emt 0:06:01]}
Rxb6 {[%emt 0:03:01]} 27. Nd3 {[%emt 0:01:07]} Kh7 {[%emt 0:05:35]} 28. Qh5 {
[%emt 0:00:57]} Rf8 {[%emt 0:01:26]} 29. Ra3 {[%emt 0:02:42]} Qc8 {[%emt 0:00:
00]} 30. Rxb6 {[%emt 0:02:09]} Nxb6 {[%emt 0:00:24]} 31. Bb4 {[%emt 0:00:07]}
Rd8 {[%emt 0:04:13]} 32. Qxf7 {[%emt 0:01:06]} Nc4 {[%emt 0:00:17]} 33. Rc3 {
[%emt 0:05:19]} Qd7 {[%emt 0:02:10]} 34. Qxd7 {[%emt 0:01:03]} Rxd7 {[%emt 0:
00:00]} 35. Nc5 {[%emt 0:00:27]} Re7 {[%emt 0:00:16]} 36. b3 {[%emt 0:00:57]}
a5 {[%emt 0:02:24]} 37. bxc4 {[%emt 0:00:04]} axb4 {[%emt 0:00:08]} 38. Rb3 {
[%emt 0:00:30]} dxc4 {[%emt 0:00:48]} 39. Rxb4 {[%emt 0:00:12]} c3 {[%emt 0:00:
00]} 40. Rc4 {[%emt 0:00:07]} Kg6 {[%emt 0:00:32]} 41. Rxc3 {[%emt 0:30:19]}
Rc7 {[%emt 0:31:55]} 42. Rg3+ {[%emt 0:00:45]} Kh5 {[%emt 0:00:00]} 43. Nxe6 {
[%emt 0:00:00]} Bxe5 {[%emt 0:00:00]} 44. dxe5 {[%emt 0:00:00]} Rc1+ {[%emt 0:
00:00]} 45. Kh2 {[%emt 0:00:00]} Rc4 {[%emt 0:00:00]} 46. Ng7+ {[%emt 0:00:00]}
Kxh4 {[%emt 0:00:00]} 47. Rg6 {[%emt 0:00:00]} f4 {[%emt 0:00:00]} 48. g3+ {
[%emt 0:00:00]} fxg3+ {[%emt 0:00:00]} 49. fxg3# {[%emt 0:00:00]} 1-0

[Event "44th Chess Olympiad Open 2022"]
[Site "Chennai"]
[Date "2022.07.31"]
[Round "3.43"]
[White "Oatlhotse, Providence"]
[Black "Hernandez Guerrero, Gilberto"]
[Result "0-1"]
[WhiteElo "2204"]
[BlackElo "2560"]
[Annotator "RC"]
[PlyCount "86"]
[EventDate "2022.??.??"]
[TimeControl "60"]

1. d4 {[%emt 0:00:04]} Nf6 {[%emt 0:00:28]} 2. c4 {[%emt 0:00:03]} c5 {[%emt 0:
00:00]} 3. d5 {[%emt 0:00:03]} g6 {[%emt 0:00:22]} 4. Nc3 {[%emt 0:00:02]} Bg7
{[%emt 0:00:07]} 5. e4 {[%emt 0:00:08]} d6 {[%emt 0:00:04]} 6. Nf3 {[%emt 0:00:
00]} O-O {[%emt 0:00:31]} 7. Nd2 {[%emt 0:00:02]} a6 {[%emt 0:13:46]} 8. a4 {
[%emt 0:01:00]} Nh5 {[%emt 0:01:08]} 9. g3 {[%emt 0:01:03]} e6 {[%emt 0:01:40]}
10. Be2 {[%emt 0:00:11]} Nf6 {[%emt 0:00:09]} 11. h4 {[%emt 0:03:38]} exd5 {
[%emt 0:03:58]} 12. cxd5 {[%emt 0:00:16]} Re8 {[%emt 0:02:51]} 13. h5 {[%emt 0:
00:00]} Nbd7 {[%emt 0:00:10]} 14. g4 {[%emt 0:08:20]} Rb8 {[%emt 0:04:04]} 15.
hxg6 {[%emt 0:26:35]} hxg6 {[%emt 0:00:13]} 16. f3 {[%emt 0:00:32]} Ne5 {
[%emt 0:07:24]} 17. Ndb1 {[%emt 0:05:04]} b5 {[%emt 0:01:56]} 18. axb5 {
[%emt 0:01:33]} axb5 {[%emt 0:00:10]} 19. Bxb5 {[%emt 0:00:49]} Rxb5 {[%emt 0:
00:00]} 20. Nxb5 {[%emt 0:00:17]} Nxf3+ {[%emt 0:00:04]} 21. Qxf3 {[%emt 0:00:
00]} Bxg4 {[%emt 0:00:36]} 22. Qg2 {[%emt 0:18:28]} Rxe4+ {[%emt 0:01:03]} 23.
Kd2 {[%emt 0:09:05]} Re2+ {[%emt 0:01:09]} 24. Qxe2 {[%emt 0:00:11]} Bxe2 {
[%emt 0:00:06]} 25. Kxe2 {[%emt 0:01:49]} Qe8+ {[%emt 0:01:04]} 26. Kd1 {
[%emt 0:01:00]} Qxb5 {[%emt 0:02:45]} 27. Ra8+ {[%emt 0:02:33]} Bf8 {[%emt 0:
00:00]} 28. Bh6 {[%emt 0:01:01]} Nh7 {[%emt 0:03:31]} 29. Kc1 {[%emt 0:12:46]}
Qb7 {[%emt 0:00:43]} 30. Rd8 {[%emt 0:01:03]} Qxd5 {[%emt 0:02:07]} 31. Re1 {
[%emt 0:00:19]} Qh5 {[%emt 0:01:16]} 32. Bd2 {[%emt 0:00:17]} d5 {[%emt 0:00:
00]} 33. Ree8 {[%emt 0:00:34]} d4 {[%emt 0:04:31]} 34. Na3 {[%emt 0:00:01]} Qf3
{[%emt 0:04:03]} 35. Kc2 {[%emt 0:00:04]} Qf5+ {[%emt 0:00:23]} 36. Kc1 {
[%emt 0:01:12]} g5 {[%emt 0:00:33]} 37. b3 {[%emt 0:00:52]} Kg7 {[%emt 0:03:49]
} 38. Nc4 {[%emt 0:00:23]} g4 {[%emt 0:01:06]} 39. Re5 {[%emt 0:00:53]} Qf3 {
[%emt 0:01:27]} 40. Kb2 {[%emt 0:00:28]} g3 {[%emt 0:01:02]} 41. Re1 {[%emt 0:
00:00]} g2 {[%emt 0:00:14]} 42. Ne3 {[%emt 0:00:38]} dxe3 {[%emt 0:00:37]} 43.
Rxe3 {[%emt 0:00:19]} Qf2 {[%emt 0:00:24]} 0-1

[Event "44th Chess Olympiad Open 2022"]
[Site "Chennai"]
[Date "2022.07.31"]
[Round "3.43"]
[White "Montes Orozco, Miguel Angel"]
[Black "Sabure, Bojosi"]
[Result "1-0"]
[WhiteElo "2070"]
[BlackElo "1966"]
[Annotator "NA RC"]
[PlyCount "119"]
[EventDate "2022.??.??"]
[TimeControl "60"]

1. d4 {[%emt 0:00:02]} d6 {[%emt 0:00:46]} 2. Nf3 {[%emt 0:00:15]} Nf6 {
[%emt 0:00:44]} 3. c4 {[%emt 0:00:10]} Nbd7 {[%emt 0:00:32]} 4. Nc3 {[%emt 0:
00:00]} e5 {[%emt 0:01:01]} 5. e4 {[%emt 0:00:33]} Be7 {[%emt 0:02:30]} 6. Be2
{[%emt 0:13:35]} O-O {[%emt 0:02:36]} 7. O-O {[%emt 0:00:16]} c6 {[%emt 0:00:
00]} 8. Re1 {[%emt 0:09:58]} a6 {[%emt 0:09:47]} 9. a4 {[%emt 0:18:55]} Re8 {
[%emt 0:06:48]} 10. Bf1 {[%emt 0:08:02]} Qc7 {[%emt 0:01:55]} 11. h3 {[%emt 0:
00:00]} Nf8 {[%emt 0:04:46]} 12. a5 {[%emt 0:00:44]} Ng6 {[%emt 0:04:56]} 13.
Be3 {[%emt 0:01:17]} Bf8 {[%emt 0:03:16]} 14. Qd2 {[%emt 0:07:10]} Nh5 {
[%emt 0:01:50]} 15. g3 {[%emt 0:02:57]} Qe7 {[%emt 0:09:59]} 16. Bg2 {[%emt 0:
00:00]} h6 {[%emt 0:00:53]} 17. Na4 {[%emt 0:01:26]} Nf6 {[%emt 0:05:44]} 18.
Qc2 {[%emt 0:01:10]} Be6 {[%emt 0:02:00]} 19. Rad1 {[%emt 0:03:13]} Qc7 {
[%emt 0:02:24]} 20. dxe5 {[%emt 0:03:20]} dxe5 {[%emt 0:00:21]} 21. Bb6 {
[%emt 0:01:51]} Qc8 {[%emt 0:02:35]} 22. Kh2 {[%emt 0:00:03]} h5 {[%emt 0:00:
00]} 23. Re3 {[%emt 0:02:29]} h4 {[%emt 0:00:00]} 24. Red3 {[%emt 0:04:19]} Be7
{[%emt 0:00:26]} 25. Nd2 {[%emt 0:00:04]} c5 {[%emt 0:07:17]} 26. Nc3 {[%emt 0:
00:00]} Bd8 {[%emt 0:01:10]} 27. Bxd8 {[%emt 0:01:31]} Rxd8 {[%emt 0:00:03]}
28. Nd5 {[%emt 0:00:10]} Qc6 {[%emt 0:04:42]} 29. Nb3 {[%emt 0:00:40]} Re8 {
[%emt 0:00:44]} 30. Nb6 {[%emt 0:01:46]} Rab8 {[%emt 0:00:26]} 31. Qe2 {
[%emt 0:00:10]} Qc7 {[%emt 0:02:11]} 32. Qe3 {[%emt 0:00:14]} Rbd8 {[%emt 0:00:
00]} 33. Qxc5 {[%emt 0:00:21]} Qb8 {[%emt 0:00:01]} 34. Qe3 {[%emt 0:01:17]}
Ne7 {[%emt 0:02:40]} 35. Qd2 {[%emt 0:00:31]} Nc6 {[%emt 0:00:16]} 36. Rxd8 {
[%emt 0:01:40]} Rxd8 {[%emt 0:00:09]} 37. Nd5 {[%emt 0:00:05]} Bxd5 {[%emt 0:
00:00]} 38. cxd5 {[%emt 0:00:09]} Ne7 {[%emt 0:00:39]} 39. Qb4 {[%emt 0:00:06]}
Ng6 {[%emt 0:00:47]} 40. Nc5 {[%emt 0:00:39]} Qd6 {[%emt 0:04:21]} 41. Qb6 {
[%emt 0:30:17]} Qf8 {[%emt 0:30:00]} 42. Nxb7 {[%emt 0:02:01]} Rb8 {[%emt 0:00:
00]} 43. Qc7 {[%emt 0:00:11]} Rc8 {[%emt 0:00:37]} 44. Qd6 {[%emt 0:00:33]} Qe8
{[%emt 0:00:36]} 45. Qb4 {[%emt 0:01:15]} Rb8 {[%emt 0:00:30]} 46. Bf1 {
[%emt 0:00:08]} Qc8 {[%emt 0:00:49]} 47. Bxa6 {[%emt 0:00:08]} Qc2 {[%emt 0:00:
00]} 48. Rd2 {[%emt 0:00:21]} hxg3+ {[%emt 0:02:36]} 49. fxg3 {[%emt 0:00:10]}
Qc1 {[%emt 0:00:18]} 50. Qc3 {[%emt 0:00:00]} Qe1 {[%emt 0:00:00]} 51. Re2 {
[%emt 0:00:00]} Qf1 {[%emt 0:00:00]} 52. Qe1 {[%emt 0:00:00]} Qf3 {[%emt 0:00:
00]} 53. Re3 {[%emt 0:00:00]} Qh5 {[%emt 0:00:00]} 54. Qe2 {[%emt 0:00:00]} Qh6
{[%emt 0:00:00]} 55. Rc3 {[%emt 0:00:00]} Nf4 {[%emt 0:00:00]} 56. gxf4 {
[%emt 0:00:00]} Qxf4+ {[%emt 0:00:00]} 57. Rg3 {[%emt 0:00:00]} Nxe4 {[%emt 0:
00:00]} 58. Qg4 {[%emt 0:00:00]} Qf6 {[%emt 0:00:00]} 59. Qxe4 {[%emt 0:00:00]}
Qxa6 {[%emt 0:00:00]} 60. Qxe5 {[%emt 0:00:00]} 1-0

[Event "44th Chess Olympiad Open 2022"]
[Site "Chennai"]
[Date "2022.07.31"]
[Round "3.43"]
[White "Monnaatsheko, Keletshabile"]
[Black "Diaz Rosas, Julio Cesar"]
[Result "0-1"]
[WhiteElo "2014"]
[BlackElo "2328"]
[Annotator "RC"]
[PlyCount "84"]
[EventDate "2022.??.??"]
[TimeControl "60"]

1. d4 {[%emt 0:01:22]} Nf6 {[%emt 0:00:35]} 2. e3 {[%emt 0:00:15]} g6 {[%emt 0:
00:00]} 3. Nf3 {[%emt 0:00:10]} Bg7 {[%emt 0:00:07]} 4. Be2 {[%emt 0:00:13]}
O-O {[%emt 0:00:08]} 5. O-O {[%emt 0:00:13]} d6 {[%emt 0:05:25]} 6. b3 {
[%emt 0:00:09]} c5 {[%emt 0:00:24]} 7. Bb2 {[%emt 0:01:15]} cxd4 {[%emt 0:00:
00]} 8. Nxd4 {[%emt 0:00:30]} Nc6 {[%emt 0:00:20]} 9. c4 {[%emt 0:01:27]} Bd7 {
[%emt 0:01:27]} 10. Nc3 {[%emt 0:00:28]} Rc8 {[%emt 0:01:03]} 11. Qd2 {[%emt 0:
00:00]} Re8 {[%emt 0:00:31]} 12. Rfd1 {[%emt 0:00:17]} a6 {[%emt 0:03:41]} 13.
Rac1 {[%emt 0:00:10]} Nxd4 {[%emt 0:05:27]} 14. exd4 {[%emt 0:00:07]} Qa5 {
[%emt 0:00:46]} 15. a3 {[%emt 0:06:40]} Ng4 {[%emt 0:05:22]} 16. b4 {[%emt 0:
00:00]} Qd8 {[%emt 0:03:30]} 17. h3 {[%emt 0:07:30]} Bh6 {[%emt 0:03:24]} 18.
f4 {[%emt 0:02:11]} Nf6 {[%emt 0:01:06]} 19. g4 {[%emt 0:00:52]} Bg7 {[%emt 0:
00:00]} 20. Kh2 {[%emt 0:08:49]} h6 {[%emt 0:01:36]} 21. g5 {[%emt 0:02:20]}
hxg5 {[%emt 0:00:56]} 22. fxg5 {[%emt 0:00:03]} Nh7 {[%emt 0:00:12]} 23. h4 {
[%emt 0:01:59]} e5 {[%emt 0:03:24]} 24. Nd5 {[%emt 0:13:22]} Bc6 {[%emt 0:00:
00]} 25. Bg4 {[%emt 0:03:23]} exd4 {[%emt 0:14:28]} 26. Bxd4 {[%emt 0:06:37]}
Re4 {[%emt 0:01:32]} 27. Bxg7 {[%emt 0:09:11]} Rxg4 {[%emt 0:00:07]} 28. Bf6 {
[%emt 0:01:28]} Qd7 {[%emt 0:00:04]} 29. Qf2 {[%emt 0:08:07]} Bxd5 {[%emt 0:00:
00]} 30. cxd5 {[%emt 0:00:01]} Nxf6 {[%emt 0:00:45]} 31. gxf6 {[%emt 0:00:55]}
Rxc1 {[%emt 0:00:30]} 32. Rxc1 {[%emt 0:00:14]} Qe8 {[%emt 0:00:22]} 33. Kh3 {
[%emt 0:11:35]} Re4 {[%emt 0:00:03]} 34. Rc3 {[%emt 0:01:46]} Qe5 {[%emt 0:00:
00]} 35. Rf3 {[%emt 0:01:37]} Qxd5 {[%emt 0:01:26]} 36. Qb6 {[%emt 0:01:58]}
Qe6+ {[%emt 0:00:59]} 37. Kg3 {[%emt 0:00:58]} Qg4+ {[%emt 0:00:14]} 38. Kf2 {
[%emt 0:00:20]} Qxh4+ {[%emt 0:00:09]} 39. Kg2 {[%emt 0:01:03]} Re2+ {[%emt 0:
00:00]} 40. Rf2 {[%emt 0:00:22]} Rxf2+ {[%emt 0:00:10]} 41. Qxf2 {[%emt 0:00:
00]} Qxf2+ {[%emt 0:30:05]} 42. Kxf2 {[%emt 0:00:38]} g5 {[%emt 0:00:10]} 0-1

[Event "44th Chess Olympiad Open 2022"]
[Site "Chennai"]
[Date "2022.07.31"]
[Round "3.44"]
[White "Reimanis, Ritvars"]
[Black "Garcia Cuestas, Kevin"]
[Result "1-0"]
[WhiteElo "2377"]
[BlackElo "1984"]
[Annotator "RC"]
[PlyCount "75"]
[EventDate "2022.??.??"]
[TimeControl "60"]

1. d4 {[%emt 0:00:11]} Nf6 {[%emt 0:00:10]} 2. Nf3 {[%emt 0:00:05]} d5 {
[%emt 0:00:40]} 3. c4 {[%emt 0:00:08]} e6 {[%emt 0:00:18]} 4. Nc3 {[%emt 0:00:
00]} Be7 {[%emt 0:00:45]} 5. Bf4 {[%emt 0:01:25]} a6 {[%emt 0:02:37]} 6. e3 {
[%emt 0:00:13]} O-O {[%emt 0:01:39]} 7. Qc2 {[%emt 0:03:06]} dxc4 {[%emt 0:00:
00]} 8. Bxc4 {[%emt 0:00:07]} c5 {[%emt 0:03:50]} 9. dxc5 {[%emt 0:05:39]} Bxc5
{[%emt 0:01:17]} 10. O-O {[%emt 0:00:18]} Qe7 {[%emt 0:18:48]} 11. Ng5 {
[%emt 0:19:56]} Nbd7 {[%emt 0:16:41]} 12. Nge4 {[%emt 0:10:22]} b5 {[%emt 0:00:
00]} 13. Be2 {[%emt 0:18:31]} Bb7 {[%emt 0:06:14]} 14. Rfd1 {[%emt 0:02:10]}
Nxe4 {[%emt 0:15:18]} 15. Nxe4 {[%emt 0:00:11]} Bxe4 {[%emt 0:00:08]} 16. Qxe4
{[%emt 0:00:07]} Nf6 {[%emt 0:00:14]} 17. Qf3 {[%emt 0:08:51]} Nd5 {[%emt 0:00:
00]} 18. Bg3 {[%emt 0:01:28]} Qf6 {[%emt 0:00:20]} 19. Qxf6 {[%emt 0:03:07]}
Nxf6 {[%emt 0:00:06]} 20. Bf3 {[%emt 0:00:05]} Rad8 {[%emt 0:00:25]} 21. Bb7 {
[%emt 0:06:13]} a5 {[%emt 0:07:00]} 22. Bc7 {[%emt 0:00:25]} Rd7 {[%emt 0:00:
00]} 23. Rxd7 {[%emt 0:02:41]} Nxd7 {[%emt 0:00:06]} 24. Rd1 {[%emt 0:04:22]}
Nb6 {[%emt 0:01:30]} 25. Rc1 {[%emt 0:00:02]} Nc4 {[%emt 0:01:11]} 26. a4 {
[%emt 0:07:09]} Bd6 {[%emt 0:00:22]} 27. axb5 {[%emt 0:00:22]} Bxc7 {[%emt 0:
00:00]} 28. Rxc4 {[%emt 0:00:06]} Bd6 {[%emt 0:00:28]} 29. f4 {[%emt 0:03:34]}
Rb8 {[%emt 0:00:09]} 30. Ba6 {[%emt 0:00:49]} g6 {[%emt 0:00:11]} 31. Rc6 {
[%emt 0:00:14]} Bb4 {[%emt 0:01:27]} 32. b6 {[%emt 0:00:20]} Kg7 {[%emt 0:00:
00]} 33. b7 {[%emt 0:02:02]} Kf6 {[%emt 0:00:51]} 34. Kf2 {[%emt 0:00:09]} Ke7
{[%emt 0:00:32]} 35. Rc7+ {[%emt 0:00:11]} Kf6 {[%emt 0:00:17]} 36. e4 {
[%emt 0:01:00]} e5 {[%emt 0:00:47]} 37. Rc6+ {[%emt 0:00:12]} Ke7 {[%emt 0:00:
00]} 38. fxe5 {[%emt 0:00:06]} 1-0

[Event "44th Chess Olympiad Open 2022"]
[Site "Chennai"]
[Date "2022.07.31"]
[Round "3.44"]
[White "Ungurs, Edgars"]
[Black "Chahin Godoy, Angel Eduardo"]
[Result "1-0"]
[WhiteElo "2206"]
[BlackElo "1844"]
[Annotator "RC"]
[PlyCount "77"]
[EventDate "2022.??.??"]
[TimeControl "60"]

1. e4 {[%emt 0:00:05]} e6 {[%emt 0:00:11]} 2. d4 {[%emt 0:00:25]} d5 {[%emt 0:
00:00]} 3. Nd2 {[%emt 0:00:26]} c5 {[%emt 0:00:43]} 4. exd5 {[%emt 0:00:48]}
exd5 {[%emt 0:00:29]} 5. Ngf3 {[%emt 0:00:30]} Nc6 {[%emt 0:00:49]} 6. Bb5 {
[%emt 0:00:58]} Bd6 {[%emt 0:01:05]} 7. dxc5 {[%emt 0:02:19]} Bxc5 {[%emt 0:00:
00]} 8. O-O {[%emt 0:00:55]} Nge7 {[%emt 0:01:22]} 9. Nb3 {[%emt 0:00:38]} Bd6
{[%emt 0:00:52]} 10. Bg5 {[%emt 0:04:13]} O-O {[%emt 0:01:25]} 11. Bh4 {
[%emt 0:01:06]} Qc7 {[%emt 0:05:04]} 12. Bg3 {[%emt 0:01:13]} Rd8 {[%emt 0:00:
00]} 13. c3 {[%emt 0:03:11]} Bg4 {[%emt 0:13:12]} 14. Be2 {[%emt 0:20:58]} Bxg3
{[%emt 0:19:55]} 15. hxg3 {[%emt 0:01:04]} Nf5 {[%emt 0:09:55]} 16. Bd3 {
[%emt 0:09:22]} Qb6 {[%emt 0:10:16]} 17. Bxf5 {[%emt 0:07:03]} Bxf5 {[%emt 0:
00:00]} 18. Nfd4 {[%emt 0:00:59]} Bg6 {[%emt 0:00:56]} 19. Re1 {[%emt 0:10:54]}
Re8 {[%emt 0:09:59]} 20. Rxe8+ {[%emt 0:12:29]} Rxe8 {[%emt 0:00:06]} 21. Nf3 {
[%emt 0:00:06]} Be4 {[%emt 0:04:58]} 22. Qe2 {[%emt 0:07:11]} Re7 {[%emt 0:00:
00]} 23. Qd2 {[%emt 0:02:36]} h6 {[%emt 0:01:23]} 24. Nbd4 {[%emt 0:03:25]} Qa6
{[%emt 0:01:23]} 25. Nxc6 {[%emt 0:02:55]} bxc6 {[%emt 0:00:03]} 26. Nd4 {
[%emt 0:00:30]} c5 {[%emt 0:00:35]} 27. Nb3 {[%emt 0:00:18]} c4 {[%emt 0:00:06]
} 28. Nc5 {[%emt 0:04:51]} Qb6 {[%emt 0:00:51]} 29. b4 {[%emt 0:00:31]} a5 {
[%emt 0:00:27]} 30. a3 {[%emt 0:00:29]} Ra7 {[%emt 0:00:08]} 31. Re1 {[%emt 0:
00:00]} axb4 {[%emt 0:01:43]} 32. axb4 {[%emt 0:00:02]} Qg6 {[%emt 0:02:12]}
33. Qf4 {[%emt 0:01:52]} Ra3 {[%emt 0:00:56]} 34. f3 {[%emt 0:01:18]} Bd3 {
[%emt 0:00:46]} 35. Nd7 {[%emt 0:01:04]} Ra8 {[%emt 0:00:53]} 36. g4 {[%emt 0:
00:00]} Qg5 {[%emt 0:01:30]} 37. Qxg5 {[%emt 0:00:30]} hxg5 {[%emt 0:00:04]}
38. b5 {[%emt 0:00:14]} d4 {[%emt 0:00:36]} 39. b6 {[%emt 0:00:24]} 1-0

[Event "44th Chess Olympiad Open 2022"]
[Site "Chennai"]
[Date "2022.07.31"]
[Round "3.44"]
[White "Chinchilla, Alejandro Jose"]
[Black "Kantans, Toms"]
[Result "0-1"]
[WhiteElo "2166"]
[BlackElo "2486"]
[Annotator "RC"]
[PlyCount "64"]
[EventDate "2022.??.??"]
[TimeControl "60"]

1. Nf3 {[%emt 0:00:08]} Nf6 {[%emt 0:03:27]} 2. b3 {[%emt 0:00:17]} g6 {
[%emt 0:01:39]} 3. Bb2 {[%emt 0:00:16]} Bg7 {[%emt 0:00:05]} 4. g3 {[%emt 0:00:
00]} d5 {[%emt 0:01:09]} 5. c4 {[%emt 0:00:17]} O-O {[%emt 0:07:11]} 6. cxd5 {
[%emt 0:02:23]} Qxd5 {[%emt 0:00:08]} 7. Bg2 {[%emt 0:00:17]} Rd8 {[%emt 0:00:
00]} 8. O-O {[%emt 0:00:32]} Qh5 {[%emt 0:00:39]} 9. d3 {[%emt 0:03:07]} Bh3 {
[%emt 0:01:16]} 10. Nbd2 {[%emt 0:01:18]} Nc6 {[%emt 0:04:46]} 11. Rc1 {
[%emt 0:01:54]} a5 {[%emt 0:03:58]} 12. a3 {[%emt 0:07:47]} h6 {[%emt 0:18:05]}
13. Re1 {[%emt 0:25:02]} Bxg2 {[%emt 0:07:40]} 14. Kxg2 {[%emt 0:00:11]} Qd5 {
[%emt 0:00:10]} 15. Nb1 {[%emt 0:16:55]} e5 {[%emt 0:02:35]} 16. Nc3 {[%emt 0:
00:00]} Qe6 {[%emt 0:00:06]} 17. Nb5 {[%emt 0:07:28]} Rac8 {[%emt 0:00:13]} 18.
Qc2 {[%emt 0:00:36]} Nd5 {[%emt 0:01:26]} 19. Kg1 {[%emt 0:07:14]} Nce7 {
[%emt 0:12:23]} 20. Nd2 {[%emt 0:03:23]} c6 {[%emt 0:06:37]} 21. Nc3 {[%emt 0:
00:00]} Qh3 {[%emt 0:03:12]} 22. Na4 {[%emt 0:03:38]} Nf5 {[%emt 0:05:14]} 23.
e3 {[%emt 0:03:37]} c5 {[%emt 0:03:44]} 24. Ne4 {[%emt 0:03:20]} b6 {[%emt 0:
00:00]} 25. Qe2 {[%emt 0:00:57]} Nfe7 {[%emt 0:01:27]} 26. Nd2 {[%emt 0:00:23]}
Qe6 {[%emt 0:01:11]} 27. Qf3 {[%emt 0:03:03]} Nf6 {[%emt 0:04:06]} 28. d4 {
[%emt 0:00:46]} Nd7 {[%emt 0:02:45]} 29. dxc5 {[%emt 0:00:46]} b5 {[%emt 0:00:
00]} 30. c6 {[%emt 0:01:34]} Nxc6 {[%emt 0:01:19]} 31. Nc3 {[%emt 0:00:25]} Nc5
{[%emt 0:00:06]} 32. Nde4 {[%emt 0:01:01]} Nd3 {[%emt 0:00:33]} 0-1